bitfinex-derivatives/quotes_SOLF0:USTF0_20250904
["timestamp","ask_amount","ask_price","bid_price","bid_amount"]
[1757021923818,1.94845858,203.5,203.49,7.54500132]
[1757021924018,1.94845858,203.5,203.49,12.0149068]
[1757021924316,1.94845858,203.5,203.49,15.89056766]
[1757021924517,119.16,203.54,203.49,15.89056766]
[1757021924712,1.94845858,203.5,203.49,7.54500132]
[1757021924918,1.94845858,203.5,203.49,11.42066218]
[1757021925719,7.68,203.52,203.49,15.89152842]
[1757021926017,1.94845858,203.5,203.49,7.54500132]
[1757021926219,1.94845858,203.5,203.49,11.42134167]
[1757021927023,1.94845858,203.5,203.49,11.42132014]
[1757021927222,1.94845858,203.5,203.49,15.89365113]
[1757021933119,1.94845858,203.5,203.49,7.54500132]
[1757021933321,1.94845858,203.5,203.49,12.01340199]
[1757021934726,1.94845858,203.5,203.49,12.01341847]
[1757021938429,1.94845858,203.5,203.49,12.01395266]
[1757021940833,7.68,203.52,203.5,7.81]
[1757021941033,1.94845858,203.51,203.5,7.81]
[1757021941234,1.94845858,203.51,203.5,12.27911743]
[1757021942034,9.57845858,203.51,203.5,4.46911743]
[1757021943437,10.67509522,203.51,203.5,4.46911743]
[1757021945231,3.04509522,203.52,203.51,7.81]
[1757021945634,3.04509522,203.52,203.51,12.27767954]
[1757021946333,10.67509522,203.53,203.51,12.27767954]
[1757021946533,10.67509522,203.53,203.51,7.81]
[1757021947228,3.04509522,203.53,203.51,7.81]
[1757021947428,10.67509522,203.53,203.51,7.81]
[1757021947631,10.67509522,203.57,203.52,8.33623058]
[1757021947833,10.67509522,203.57,203.54,7.81]
[1757021948034,10.67509522,203.57,203.55,4.46450763]
[1757021948237,7.63,203.56,203.54,7.81]
[1757021948540,7.63,203.56,203.55,4.83817774]
[1757021956149,7.63,203.56,203.54,7.84133322]
[1757021958952,7.85,203.56,203.54,7.84133322]
[1757021959546,10.89509522,203.56,203.54,7.84133322]
[1757021961550,3.04509522,203.56,203.54,7.47133322]
[1757021962451,3.04509522,203.57,203.54,7.47133322]
[1757021962656,7.85,203.56,203.54,7.47133322]
[1757021973765,10.89509522,203.56,203.55,4.79322553]
[1757021974060,10.89509522,203.56,203.54,7.47133322]
[1757021976562,3.04509522,203.56,203.55,7.44]
[1757021978070,3.04509522,203.56,203.55,12.19382864]
[1757021984773,0.85528903,203.61,203.55,4.75382864]
[1757021984965,3.04509522,203.58,203.57,7.44]
[1757021992175,3.04509522,203.58,203.57,12.20255035]
[1757021995271,3.04509522,203.58,203.57,7.44]
[1757022000182,3.04509522,203.58,203.54,0.03133322]
[1757022000387,7.72,203.57,203.55,12.90032831]
[1757022000584,7.72,203.57,203.54,0.03133322]
[1757022000781,10.76509522,203.55,203.54,0.03133322]
[1757022005485,9.66828165,203.55,203.54,0.03133322]
[1757022006580,9.66828165,203.55,203.52,8.14]
[1757022006581,1.94828165,203.55,203.52,8.14]
[1757022006888,9.66828165,203.53,203.45,8.14]
[1757022007088,1.94828165,203.49,203.47,8.14]
[1757022007388,1.94828165,203.49,203.48,12.85965739]
[1757022007582,119.12,203.52,203.48,12.85965739]
[1757022007782,1.94828165,203.49,203.48,8.14]
[1757022007986,1.94828165,203.49,203.48,12.85842505]
[1757022011187,1.94828165,203.49,203.48,8.14]
[1757022011784,1.94828165,203.49,203.4,4.11158132]
[1757022011990,7.75335724,203.51,203.42,8.14]
[1757022011991,1.94828165,203.45,203.42,8.14]
[1757022012187,1.94828165,203.45,203.39,8.14]
[1757022012387,1.94828165,203.45,203.41,8.14]
[1757022012687,1.94828165,203.45,203.42,3.86256593]
[1757022012889,1.94828165,203.45,203.39,8.14]
[1757022013091,1.94828165,203.45,203.41,8.14]
[1757022014290,1.98586273,203.46,203.41,8.14]
[1757022017897,1.98586273,203.46,203.37,7.33]
[1757022018089,1.98586273,203.46,203.39,7.33]
[1757022018290,1.98586273,203.46,203.41,7.33]
[1757022019389,1.98586273,203.46,203.38,1.94828165]
[1757022019594,1.94828165,203.44,203.4,7.33]
[1757022020793,1.94828165,203.44,203.37,7.33]
[1757022020997,1.94828165,203.44,203.38,3.85409191]
[1757022021296,9.31828165,203.44,203.39,3.85409191]
[1757022021495,9.31828165,203.44,203.37,7.33]
[1757022021695,9.31828165,203.44,203.38,3.85321601]
[1757022021998,9.31828165,203.44,203.4,7.33]
[1757022022200,9.31828165,203.44,203.37,7.33]
[1757022022399,9.31828165,203.44,203.39,7.33]
[1757022022900,1.94828165,203.42,203.37,7.33]
[1757022023099,1.94828165,203.42,203.38,3.85221755]
[1757022023399,1.94828165,203.42,203.37,7.33]
[1757022023599,1.98087153,203.42,203.37,7.33]
[1757022030802,1.94828165,203.41,203.37,7.33]
[1757022030997,1.94828165,203.41,203.36,7.33]
[1757022034101,0.03258988,203.42,203.36,7.33]
[1757022034305,1.94828165,203.49,203.41,1.94828165]
[1757022034498,7.37,203.62,203.46,1.94828165]
[1757022034703,1.94828165,203.55,203.48,7.33]
[1757022035905,1.94828165,203.55,203.49,0.03230976]
[1757022036104,1.94828165,203.53,203.5,7.33]
[1757022036301,1.94828165,203.53,203.49,0.03230976]
[1757022037207,1.94828165,203.53,203.5,7.33]
[1757022037403,1.94828165,203.53,203.49,0.03230976]
[1757022037810,1.94828165,203.53,203.5,7.33]
[1757022038206,1.94828165,203.53,203.49,0.03230976]
[1757022038412,1.94828165,203.53,203.5,7.33]
[1757022038911,1.94828165,203.53,203.49,0.03230976]
[1757022039414,7.37,203.62,203.52,1.94828165]
[1757022039607,1.94828165,203.6,203.52,1.94828165]
[1757022039914,1.94828165,203.6,203.53,7.33]
[1757022040216,1.94828165,203.6,203.54,0.03587988]
[1757022041207,1.94828165,203.6,203.55,7.33]
[1757022041713,1.94828165,203.6,203.54,0.03587988]
[1757022042012,7.37,203.59,203.55,7.33]
[1757022042312,7.37,203.59,203.54,0.03587988]
[1757022042512,7.37,203.59,203.55,7.33]
[1757022042714,7.37,203.59,203.54,0.03587988]
[1757022043015,1.94828165,203.6,203.55,7.33]
[1757022043209,7.37,203.59,203.55,7.33]
[1757022043912,7.37,203.59,203.54,0.03587988]
[1757022044412,1.94828165,203.6,203.55,7.33]
[1757022044607,1.94828165,203.58,203.54,0.03587988]
[1757022044808,7.37,203.57,203.54,0.03587988]
[1757022045015,7.37,203.57,203.54,7.36587988]
[1757022048717,7.37,203.57,203.55,7.47]
[1757022053218,7.96,203.58,203.54,7.50587988]
[1757022053617,1.94828165,203.59,203.54,7.50587988]
[1757022053821,7.96,203.58,203.54,7.50587988]
[1757022054322,1.94828165,203.59,203.54,7.50587988]
[1757022054521,7.96,203.58,203.54,7.50587988]
[1757022054918,1.94828165,203.59,203.54,7.50587988]
[1757022055420,7.96,203.58,203.54,7.50587988]
[1757022055625,1.94828165,203.59,203.54,7.50587988]
[1757022055825,7.96,203.58,203.55,7.47]
[1757022056325,7.96,203.58,203.54,0.03587988]
[1757022056520,7.96,203.58,203.55,7.47]
[1757022056925,1.94828165,203.59,203.55,7.47]
[1757022057526,7.96,203.58,203.55,7.47]
[1757022057725,1.94828165,203.59,203.55,7.47]
[1757022058323,7.96,203.58,203.55,7.47]
[1757022058522,1.94828165,203.59,203.55,7.47]
[1757022059427,7.96,203.58,203.55,7.47]
[1757022059627,7.96,203.59,203.55,7.47]
[1757022059828,7.96,203.59,203.54,0.03587988]
[1757022060232,7.96,203.59,203.55,7.47]
[1757022060527,7.96,203.59,203.54,0.03587988]
[1757022060827,7.96,203.59,203.55,7.47]
[1757022061031,1.94828165,203.6,203.55,7.47]
[1757022061937,7.96,203.59,203.54,0.03587988]
[1757022062133,1.94828165,203.6,203.55,7.47]
[1757022062332,7.96,203.59,203.54,0.03587988]
[1757022062632,7.96,203.59,203.55,7.47]
[1757022063232,7.96,203.59,203.54,0.03587988]
[1757022063532,1.94828165,203.6,203.54,0.03587988]
[1757022063934,7.96,203.59,203.54,0.03587988]
[1757022064127,1.94828165,203.6,203.54,0.03587988]
[1757022064729,7.96,203.59,203.54,0.03587988]
[1757022064930,1.94828165,203.6,203.54,0.03587988]
[1757022065334,7.96,203.62,203.54,0.03587988]
[1757022065534,1.94828165,203.59,203.55,7.47]
[1757022066331,7.96,203.58,203.55,7.47]
[1757022066635,1.94828165,203.6,203.55,7.47]
[1757022067136,7.96,203.59,203.55,7.47]
[1757022067736,7.96,203.62,203.55,7.47]
[1757022069434,7.96,203.62,203.54,0.03187561]
[1757022070434,80.24,203.62,203.54,0.03187561]
[1757022070734,30.48,203.62,203.54,0.03187561]
[1757022072331,7.96,203.62,203.54,0.03187561]
[1757022073536,3.0419663,203.6,203.54,0.03187561]
[1757022073733,7.96,203.59,203.54,0.03187561]
[1757022079245,7.72,203.56,203.54,0.03187561]
[1757022079742,3.0419663,203.57,203.54,0.03187561]
[1757022080945,7.72,203.56,203.54,0.03187561]
[1757022081144,3.0419663,203.57,203.54,0.03187561]
[1757022081741,22.49,203.62,203.54,0.03187561]
[1757022081944,10.7619663,203.58,203.54,0.03187561]
[1757022083649,7.72,203.61,203.54,0.03187561]
[1757022084044,7.72,203.61,203.55,7.38]
[1757022084756,7.72,203.61,203.56,4.53106329]
[1757022084945,7.72,203.61,203.55,7.38]
[1757022085146,7.72,203.61,203.56,4.53106329]
[1757022085346,7.72,203.61,203.55,7.38]
[1757022085548,3.0419663,203.62,203.56,4.53125016]
[1757022085845,7.72,203.61,203.55,7.38]
[1757022086150,3.0419663,203.62,203.56,4.53124968]
[1757022086350,7.72,203.61,203.57,4.53075785]
[1757022086549,7.72,203.61,203.59,7.38]
[1757022086750,3.0419663,203.63,203.55,7.38]
[1757022086946,3.0419663,203.63,203.57,7.38]
[1757022087252,10.7619663,203.63,203.58,8.40061383]
[1757022087551,10.7619663,203.63,203.6,7.38]
[1757022089349,11.61725533,203.66,203.59,7.38]
[1757022089549,10.7619663,203.66,203.6,4.52842811]
[1757022089744,10.7619663,203.66,203.59,7.38]
[1757022089948,10.7619663,203.66,203.6,4.52841895]
[1757022090154,10.7619663,203.66,203.59,7.38]
[1757022092546,316.5,203.7,203.6,8.45862153]
[1757022092547,7.72,203.68,203.6,8.45862153]
[1757022092753,3.0419663,203.7,203.62,7.38]
[1757022092953,3.0419663,203.7,203.63,8.45541624]
[1757022093149,3.0419663,203.7,203.64,7.4117918]
[1757022094755,7.72,203.69,203.64,0.0317918]
[1757022094948,3.0419663,203.7,203.64,0.0317918]
[1757022095149,7.72,203.69,203.64,0.0317918]
[1757022095751,10.7619663,203.7,203.64,7.4117918]
[1757022103061,7.72,203.7,203.64,7.4117918]
[1757022106559,3.0419663,203.67,203.64,0.0317918]
[1757022106764,10.7619663,203.67,203.65,7.38]
[1757022106966,7.72,203.66,203.64,0.0317918]
[1757022107361,3.0419663,203.67,203.64,0.0317918]
[1757022107556,7.72,203.66,203.64,0.0317918]
[1757022107760,83.80483732,203.73,203.64,0.0317918]
[1757022107967,3.0419663,203.67,203.64,0.0317918]
[1757022108458,7.59,203.66,203.64,0.0317918]
[1757022108660,3.0419663,203.67,203.64,0.0317918]
[1757022109360,7.59,203.66,203.64,0.0317918]
[1757022109564,3.0419663,203.67,203.64,0.0317918]
[1757022109966,7.59,203.66,203.64,0.0317918]
[1757022110361,3.0419663,203.67,203.64,0.0317918]
[1757022110668,7.59,203.66,203.64,0.0317918]
[1757022111564,3.0419663,203.67,203.64,0.0317918]
[1757022111864,7.59,203.66,203.64,0.0317918]
[1757022112266,3.0419663,203.67,203.64,0.0317918]
[1757022112467,7.59,203.66,203.64,0.0317918]
[1757022112660,3.0419663,203.67,203.64,0.0317918]
[1757022112867,7.59,203.66,203.64,0.0317918]
[1757022113070,3.0419663,203.67,203.64,0.0317918]
[1757022113466,7.59,203.66,203.64,0.0317918]
[1757022113764,3.0419663,203.67,203.64,0.0317918]
[1757022114166,7.59,203.66,203.64,0.0317918]
[1757022114564,3.0419663,203.67,203.64,0.0317918]
[1757022114968,7.59,203.66,203.64,0.0317918]
[1757022115169,3.0419663,203.67,203.64,0.0317918]
[1757022115472,7.59,203.66,203.64,0.0317918]
[1757022116670,3.0419663,203.67,203.64,0.0317918]
[1757022116871,7.59,203.66,203.64,0.0317918]
[1757022117067,3.0419663,203.67,203.64,0.0317918]
[1757022117271,7.59,203.66,203.64,0.0317918]
[1757022117772,3.0419663,203.67,203.64,0.0317918]
[1757022118072,7.59,203.66,203.64,0.0317918]
[1757022118275,3.0419663,203.67,203.64,0.0317918]
[1757022118872,7.59,203.66,203.64,0.0317918]
[1757022119068,3.0419663,203.67,203.64,0.0317918]
[1757022119275,7.59,203.66,203.64,0.0317918]
[1757022119476,3.0419663,203.67,203.64,0.0317918]
[1757022119976,7.59,203.66,203.64,0.0317918]
[1757022120877,3.0419663,203.67,203.64,0.0317918]
[1757022121072,7.59,203.72,203.65,8.13]
[1757022121274,10.6319663,203.72,203.65,8.13]
[1757022126476,0.85482682,203.73,203.64,0.0317918]
[1757022126477,7.59,203.68,203.64,0.0317918]
[1757022126682,7.59,203.68,203.65,8.13]
[1757022127283,3.0419663,203.69,203.65,8.13]
[1757022127778,7.59,203.68,203.65,8.13]
[1757022128277,3.0419663,203.69,203.65,8.13]
[1757022128483,7.59,203.68,203.65,8.13]
[1757022128882,3.0419663,203.69,203.65,8.13]
[1757022129278,7.59,203.68,203.65,8.13]
[1757022129485,9.53554127,203.67,203.64,8.1617918]
[1757022129683,7.59,203.66,203.64,8.1617918]
[1757022132785,1.94554127,203.67,203.64,0.0317918]
[1757022132984,9.53554127,203.67,203.64,8.1617918]
[1757022134186,9.53554127,203.68,203.65,8.13]
[1757022134388,7.59,203.67,203.65,8.13]
[1757022135288,9.53554127,203.67,203.65,8.13]
[1757022135485,7.59,203.67,203.65,8.13]
[1757022135687,9.53554127,203.67,203.65,8.13]
[1757022135988,9.53554127,203.67,203.64,0.0317918]
[1757022135989,7.59,203.66,203.64,0.0317918]
[1757022136187,1.94554127,203.65,203.64,0.0317918]
[1757022136382,9.53554127,203.65,203.64,4.56650253]
[1757022136582,9.53554127,203.65,203.64,0.0317918]
[1757022137290,9.53554127,203.65,203.64,4.56829872]
[1757022137585,9.53554127,203.65,203.64,0.0317918]
[1757022141094,7.59,203.65,203.64,0.0317918]
[1757022142791,1.97908294,203.67,203.64,0.0317918]
[1757022142998,9.38908294,203.67,203.64,8.1517918]
[1757022143195,9.38908294,203.67,203.65,8.12]
[1757022144998,7.44354167,203.67,203.65,8.12]
[1757022152606,7.44354167,203.67,203.66,4.52665516]
[1757022153702,0.03354167,203.67,203.66,12.64665516]
[1757022155709,7.44354167,203.67,203.66,4.52665516]
[1757022157205,0.03354167,203.67,203.66,4.52665516]
[1757022157410,7.44354167,203.67,203.66,12.64665516]
[1757022157709,7.44354167,203.67,203.66,4.52665516]
[1757022162206,7.44354167,203.67,203.66,4.52699139]
[1757022165108,0.03354167,203.67,203.66,4.52699139]
[1757022165309,0.03354167,203.67,203.66,12.64699139]
[1757022167916,0.03354167,203.67,203.66,12.64782949]
[1757022171420,0.03354167,203.67,203.66,12.64539748]
[1757022179734,0.03354167,203.67,203.66,12.6454635]
[1757022180936,0.03354167,203.67,203.66,8.12]
[1757022181138,0.03354167,203.67,203.66,12.64361472]
[1757022186346,0.03354167,203.67,203.66,16.58359674]
[1757022193256,0.03354167,203.67,203.66,12.64361472]
[1757022194957,0.03354167,203.67,203.66,12.64651496]
[1757022197658,0.03354167,203.67,203.66,16.58838242]
[1757022198661,0.03354167,203.67,203.66,12.64651496]
[1757022203364,0.03354167,203.67,203.66,16.53221015]
[1757022206169,0.03354167,203.67,203.66,16.53247438]
[1757022225589,0.03354167,203.67,203.66,16.49158492]
[1757022229389,0.03354167,203.67,203.66,16.49040456]
[1757022241597,0.03354167,203.67,203.66,12.60444514]
[1757022241802,0.03354167,203.67,203.66,16.48960383]
[1757022248308,7.46,203.76,203.67,7.38]
[1757022248510,7.46,203.76,203.69,7.38]
[1757022248708,7.46,203.76,203.7,15.74829332]
[1757022248903,7.46,203.76,203.71,4.48444514]
[1757022249105,7.46,203.74,203.68,7.38]
[1757022249412,3.03970526,203.76,203.7,7.38]
[1757022249612,10.49970526,203.76,203.72,7.38]
[1757022249810,10.49970526,203.76,203.7,7.38]
[1757022250010,10.49970526,203.76,203.71,4.48040453]
[1757022250313,10.49970526,203.76,203.7,7.38]
[1757022250509,10.49970526,203.76,203.71,4.47979669]
[1757022250702,10.49970526,203.76,203.7,7.38]
[1757022250906,3.03970526,203.76,203.72,7.38]
[1757022251408,1.94412711,203.74,203.72,7.38]
[1757022251711,9.40412711,203.74,203.72,7.38]
[1757022253908,35.9,203.76,203.72,7.38]
[1757022254103,7.46,203.74,203.72,7.38]
[1757022255812,1.94412711,203.75,203.7,7.38]
[1757022256114,1.94412711,203.75,203.69,0.03534702]
[1757022256115,7.46,203.75,203.72,7.38]
[1757022256314,1.94412711,203.74,203.72,7.38]
[1757022257007,9.40412711,203.74,203.72,7.38]
[1757022258916,7.74,203.73,203.69,0.03534702]
[1757022259112,7.74,203.73,203.71,7.89]
[1757022259317,1.94412711,203.74,203.7,7.89]
[1757022259617,9.68412711,203.74,203.69,0.03534702]
[1757022259813,7.74,203.73,203.71,7.89]
[1757022260316,9.68412711,203.74,203.69,0.03534702]
[1757022260518,7.74,203.73,203.71,7.89]
[1757022262310,1.94412711,203.74,203.71,7.89]
[1757022262519,7.74,203.73,203.71,7.89]
[1757022262714,46.63465887,203.77,203.7,7.89]
[1757022262922,7.74,203.75,203.72,7.89]
[1757022263121,1.94412711,203.74,203.69,0.03534702]
[1757022263321,7.74,203.73,203.71,7.89]
[1757022263622,9.68412711,203.72,203.7,7.89]
[1757022263920,1.94412711,203.73,203.71,16.36442841]
[1757022264116,1.94412711,203.73,203.7,7.89]
[1757022264421,1.94412711,203.73,203.72,7.89]
[1757022265621,1.94412711,203.73,203.72,16.36283371]
[1757022266419,1.94412711,203.73,203.72,12.43362761]
[1757022266614,9.68412711,203.74,203.72,12.43362761]
[1757022266816,7.74,203.73,203.69,7.92534702]
[1757022267125,7.74,203.73,203.71,7.89]
[1757022269225,7.74,203.73,203.72,4.54292103]
[1757022269727,7.74,203.73,203.72,4.54305441]
[1757022270121,7.74,203.73,203.72,8.47137254]
[1757022270322,7.74,203.76,203.73,7.89]
[1757022270521,9.68412711,203.76,203.73,7.89]
[1757022271127,7.74,203.75,203.73,7.89]
[1757022274127,131.64412711,203.76,203.7,7.89]
[1757022274322,131.64412711,203.76,203.72,7.89]
[1757022274527,9.68412711,203.76,203.7,7.89]
[1757022274727,123.90412711,203.76,203.71,8.4705845]
[1757022275028,1.94412711,203.82,203.75,7.89]
[1757022275228,44.22,203.82,203.77,7.89]
[1757022275426,53.90412711,203.82,203.79,7.89]
[1757022275721,9.68412711,203.82,203.79,7.89]
[1757022275926,130.88412711,203.82,203.8,4.69386737]
[1757022276118,130.88412711,203.82,203.79,7.89]
[1757022276119,132.34412711,203.82,203.79,7.89]
[1757022276928,9.68412711,203.82,203.79,7.89]
[1757022277528,121.54,203.82,203.78,7.89]
[1757022277730,121.54,203.82,203.8,7.89]
[1757022279030,9.68412711,203.83,203.77,0.03696876]
[1757022279226,78.84412711,203.83,203.78,7.89]
[1757022279831,1.94412711,203.83,203.77,0.03696876]
[1757022280026,1.94412711,203.81,203.78,7.89]
[1757022280227,1.94412711,203.79,203.77,7.92696876]
[1757022280536,9.68412711,203.79,203.77,7.92696876]
[1757022281231,7.74,203.79,203.77,7.92696876]
[1757022281434,9.68412711,203.79,203.77,7.92696876]
[1757022281635,1.94412711,203.79,203.78,7.89]
[1757022286338,7.74,203.8,203.78,7.89]
[1757022286639,7.74,203.8,203.77,0.03696876]
[1757022286640,7.74,203.78,203.77,0.03696876]
[1757022287040,9.68412711,203.79,203.77,7.92696876]
[1757022287534,8.59423929,203.88,203.78,7.89]
[1757022287735,1.94412711,203.81,203.78,7.45]
[1757022288233,7.77,203.81,203.78,7.45]
[1757022288635,9.71412711,203.82,203.77,0.03523661]
[1757022289030,9.71412711,203.82,203.78,7.45]
[1757022289231,44.75412711,203.82,203.78,7.45]
[1757022289632,44.75412711,203.82,203.77,0.03523661]
[1757022289832,7.77,203.81,203.77,0.03523661]
[1757022290240,7.77,203.81,203.78,7.45]
[1757022291433,7.77,203.81,203.77,0.03523661]
[1757022291638,7.77,203.81,203.78,7.45]
[1757022292141,9.71412711,203.81,203.78,7.45]
[1757022293448,7.77,203.81,203.78,7.45]
[1757022293649,9.71412711,203.81,203.77,0.03523661]
[1757022293849,9.71412711,203.81,203.78,7.45]
[1757022294249,9.71412711,203.81,203.77,0.03523661]
[1757022294550,1.94412711,203.79,203.77,0.03523661]
[1757022294746,9.71412711,203.79,203.77,0.03523661]
[1757022295450,9.71412711,203.79,203.77,7.48523661]
[1757022296253,1.94412711,203.79,203.77,0.03523661]
[1757022296457,7.77,203.78,203.77,0.03523661]
[1757022298157,9.71412711,203.78,203.77,0.03523661]
[1757022298754,7.77,203.78,203.77,0.03523661]
[1757022299059,9.71412711,203.78,203.77,0.03523661]
[1757022304359,7.77,203.78,203.77,0.03523661]
[1757022304561,9.71412711,203.78,203.77,0.03523661]
[1757022306268,133.49412711,203.78,203.77,0.03523661]
[1757022306862,9.71412711,203.78,203.77,0.03523661]
[1757022307066,133.47412711,203.78,203.77,0.03523661]
[1757022307269,133.45412711,203.78,203.77,0.03523661]
[1757022307468,133.47412711,203.78,203.77,0.03523661]
[1757022308173,9.71412711,203.78,203.77,0.03523661]
[1757022308374,133.49412711,203.78,203.77,0.03523661]
[1757022309873,7.77,203.78,203.77,0.03523661]
[1757022310075,133.47412711,203.78,203.77,0.03523661]
[1757022311674,131.53,203.78,203.77,0.03523661]
[1757022312977,7.77,203.78,203.77,0.03523661]
[1757022313177,131.41,203.78,203.77,0.03523661]
[1757022315480,131.29,203.78,203.77,0.03523661]
[1757022315680,131.27,203.78,203.77,0.03523661]
[1757022316181,7.77,203.78,203.77,0.03523661]
[1757022316383,131.27,203.78,203.77,0.03523661]
[1757022321288,7.77,203.78,203.77,0.03523661]
[1757022321486,131.03,203.78,203.77,0.03523661]
[1757022323187,7.77,203.78,203.77,0.03523661]
[1757022323387,131.03,203.78,203.77,0.03523661]
[1757022365925,131.03,203.78,203.73,7.37]
[1757022366120,10.69705018,203.76,203.74,3.90308529]
[1757022366320,129.38,203.75,203.73,7.37]
[1757022366522,129.38,203.75,203.74,3.90310756]
[1757022367021,7.66,203.74,203.68,4.08909927]
[1757022367222,121.76,203.73,203.7,7.48]
[1757022367427,121.76,203.73,203.71,11.38420254]
[1757022367726,121.76,203.73,203.71,7.48]
[1757022367924,129.42,203.73,203.72,3.90390939]
[1757022368129,129.42,203.73,203.71,7.48]
[1757022369130,129.42,203.73,203.67,7.48]
[1757022369427,129.42,203.73,203.68,3.88486037]
[1757022369626,129.42,203.73,203.7,7.48]
[1757022369828,129.42,203.73,203.71,11.36486037]
[1757022370028,129.42,203.73,203.71,7.48]
[1757022371835,7.66,203.72,203.71,7.48]
[1757022372032,7.66,203.72,203.66,7.48]
[1757022372239,121.72,203.71,203.68,7.48]
[1757022372533,121.72,203.71,203.7,7.48]
[1757022372828,129.38,203.71,203.7,3.88370666]
[1757022373528,131.32478264,203.71,203.65,7.48]
[1757022373720,7.66,203.7,203.66,3.88371426]
[1757022373925,121.72,203.69,203.68,7.48]
[1757022374122,121.72,203.69,203.68,11.36371426]
[1757022374728,121.68,203.69,203.68,11.36371426]
[1757022374929,131.28478264,203.69,203.68,3.88371426]
[1757022375524,123.62478264,203.69,203.63,4.08909927]
[1757022375724,9.60478264,203.67,203.65,7.48]
[1757022375930,9.60478264,203.67,203.62,4.08909927]
[1757022375931,125.62,203.66,203.6,4.08909927]
[1757022376129,1.94478264,203.65,203.61,3.8844609]
[1757022376333,9.60478264,203.63,203.62,3.8844609]
[1757022376531,131.52478264,203.63,203.62,3.8844609]
[1757022376935,1.94478264,203.63,203.57,4.08909927]
[1757022377130,19.08,203.62,203.59,7.48]
[1757022377330,19.08,203.62,203.6,3.88335836]
[1757022377535,19.08,203.62,203.61,3.88335836]
[1757022378230,19.08,203.62,203.59,7.48]
[1757022378434,19.08,203.62,203.6,3.87815064]
[1757022378633,19.08,203.62,203.59,7.48]
[1757022378936,19.08,203.62,203.6,3.87856916]
[1757022379138,19.08,203.62,203.59,7.48]
[1757022380134,1.94478264,203.61,203.59,7.48]
[1757022381634,9.37478264,203.61,203.59,7.48]
[1757022385340,7.43,203.6,203.59,7.48]
[1757022387439,7.43,203.6,203.52,6.03388191]
[1757022387639,1.94478264,203.59,203.54,7.35]
[1757022387838,1.94478264,203.59,203.55,3.86590895]
[1757022388040,1.94478264,203.59,203.56,3.86590895]
[1757022388345,1.94478264,203.59,203.58,7.35]
[1757022396144,9.37478264,203.59,203.58,7.35]
[1757022398537,9.37478264,203.59,203.52,7.35]
[1757022398742,7.43,203.59,203.54,7.35]
[1757022399047,1.94478264,203.55,203.49,7.35]
[1757022399247,1.94478264,203.55,203.48,6.03388191]
[1757022399248,1.94478264,203.55,203.5,3.86324925]
[1757022399543,9.37478264,203.55,203.52,7.35]
[1757022399744,9.37478264,203.55,203.49,7.35]
[1757022399942,1.94478264,203.53,203.51,7.35]
[1757022400247,1.94478264,203.53,203.52,7.35]
[1757022403049,7.43,203.59,203.52,7.35]
[1757022403251,1.94478264,203.54,203.48,7.35]
[1757022403452,1.94478264,203.54,203.49,3.86266137]
[1757022403750,1.94478264,203.54,203.51,7.35]
[1757022404648,1.94478264,203.54,203.49,7.35]
[1757022404851,1.94478264,203.54,203.5,3.86276951]
[1757022405151,9.37478264,203.54,203.52,7.35]
[1757022405352,1.94478264,203.54,203.48,7.35]
[1757022405652,1.94478264,203.54,203.49,3.86253139]
[1757022405846,1.94478264,203.54,203.5,3.86253139]
[1757022406051,1.94478264,203.54,203.51,3.86253139]
[1757022406247,1.94478264,203.54,203.48,7.35]
[1757022406545,1.94478264,203.54,203.49,3.86297865]
[1757022406852,1.94478264,203.54,203.5,3.86297865]
[1757022407047,1.94478264,203.54,203.47,7.35]
[1757022407250,1.94478264,203.54,203.49,7.35]
[1757022407451,1.94478264,203.54,203.5,3.86388224]
[1757022407651,1.94478264,203.52,203.46,7.35]
[1757022407852,1.94478264,203.52,203.48,8.0]
[1757022408059,1.94478264,203.52,203.5,8.0]